lending/lending_fUSD_20250114
["ID","MTS","AMOUNT","RATE_DAILY","PERIOD"]
[348872221,1736839833432,-462.97999,9.995e-05,2]
[348872222,1736839836930,-690.5723562,9.995e-05,2]
[348872223,1736839836940,-2013.25,9.995e-05,2]
[348872224,1736839836950,-500.0,9.995e-05,2]
[348872225,1736839836960,-1464.64,9.995e-05,2]
[348872226,1736839836970,-905.86,9.995e-05,2]
[348872227,1736839836979,-3735.46,9.995e-05,2]
[348872228,1736839836988,-1207.3,9.995e-05,2]
[348872229,1736839836999,-500.0,9.995e-05,2]
[348872230,1736839837008,-623.18,9.995e-05,2]
[348872231,1736839837017,-596.71,9.995e-05,2]
[348872232,1736839837026,-3952.72,9.995e-05,2]
[348872233,1736839837036,-500.0,9.995e-05,2]
[348872234,1736839837045,-500.0,9.995e-05,2]
[348872235,1736839837055,-3691.7,9.995e-05,2]
[348872236,1736839837064,-1036.81,9.995e-05,2]
[348872237,1736839837073,-631.83,9.995e-05,2]
[348872238,1736839837083,-500.0,9.995e-05,2]
[348872239,1736839837092,-500.0,9.995e-05,2]
[348872240,1736839837101,-1170.88,9.995e-05,2]
[348872241,1736839837111,-550.38,9.995e-05,2]
[348872242,1736839837120,-500.0,9.995e-05,2]
[348872243,1736839837129,-500.0,9.995e-05,2]
[348872244,1736839837139,-502.00776505,9.996e-05,2]
[348872246,1736839837148,-298.301388,9.996e-05,2]
[348872248,1736839837157,-298.301388,9.996e-05,2]
[348872249,1736839837167,-500.0,9.996e-05,2]
[348872250,1736839837177,-629.18557772,9.996e-05,2]
[348872251,1736839837186,-510.16308031,9.996e-05,2]
[348872252,1736839837196,-500.0,9.996e-05,2]
[348872253,1736839837206,-500.0,9.996e-05,2]
[348872254,1736839837215,-500.0,9.996e-05,2]
[348872255,1736839837226,-500.0,9.996e-05,2]
[348872256,1736839837235,-500.0,9.996e-05,2]
[348872257,1736839837245,-500.0,9.996e-05,2]
[348872258,1736839837254,-500.0,9.996e-05,2]
[348872259,1736839837263,-500.0,9.996e-05,2]
[348872260,1736839837273,-577.82,9.996e-05,2]
[348872261,1736839837283,-500.0,9.996e-05,2]
[348872262,1736839837293,-500.0,9.996e-05,2]
[348872263,1736839837302,-506.29544914,9.996e-05,2]
[348872264,1736839837311,-501.77708785,9.996e-05,2]
[348872265,1736839837321,-501.67492681,9.996e-05,2]
[348872266,1736839837332,-500.0,9.996e-05,2]
[348872267,1736839837342,-500.0,9.996e-05,2]
[348872268,1736839837352,-500.0,9.996e-05,2]
[348872269,1736839837361,-500.0,9.996e-05,2]
[348872270,1736839837370,-500.0,9.996e-05,2]
[348872271,1736839837380,-500.0,9.996e-05,2]
[348872272,1736839837389,-500.0,9.996e-05,2]
[348872273,1736839837399,-507.44742796,9.996e-05,2]
[348872274,1736839837408,-500.0,9.996e-05,2]
[348872275,1736839837417,-500.0,9.996e-05,2]
[348872276,1736839837427,-500.0,9.996e-05,2]
[348872277,1736839837436,-500.0,9.996e-05,2]
[348872278,1736839837446,-502.70253997,9.996e-05,2]
[348872279,1736839837455,-831.45,9.996e-05,2]
[348872280,1736839837464,-500.0,9.996e-05,2]
[348872281,1736839837475,-1587.7,9.996e-05,2]
[348872282,1736839837485,-500.0,9.996e-05,2]
[348872283,1736839837494,-500.0,9.996e-05,2]
[348872284,1736839837503,-1002.77,9.996e-05,2]
[348872285,1736839837513,-500.0,9.996e-05,2]
[348872286,1736839837522,-889.14,9.996e-05,2]
[348872287,1736839837531,-1649.88,9.996e-05,2]
[348872288,1736839837540,-500.0,9.996e-05,2]
[348872289,1736839837550,-2014.42,9.996e-05,2]
[348872290,1736839837562,-950.93,9.996e-05,2]
[348872291,1736839837572,-500.0,9.996e-05,2]
[348872292,1736839837581,-508.33567904,9.996e-05,2]
[348872293,1736839837591,-578.52,9.996e-05,2]
[348872294,1736839837600,-500.0,9.996e-05,2]
[348872295,1736839837610,-1544.5,9.996e-05,2]
[348872296,1736839837620,-500.0,9.996e-05,2]
[348872297,1736839837629,-4036.09,9.996e-05,2]
[348872298,1736839837638,-1645.0,9.996e-05,2]
[348872299,1736839837648,-1404.54,9.996e-05,2]
[348872300,1736839837658,-1181.8,9.996e-05,2]
[348872301,1736839837667,-3149.12,9.996e-05,2]
[348872302,1736839837678,-500.0,9.996e-05,2]
[348872303,1736839837687,-658.04,9.996e-05,2]
[348872304,1736839837697,-2355.85,9.996e-05,2]
[348872305,1736839837707,-1427.22,9.996e-05,2]
[348872306,1736839837717,-2095.47,9.996e-05,2]
[348872307,1736839837728,-736.38,9.996e-05,2]
[348872308,1736839837738,-1656.18,9.996e-05,2]
[348872309,1736839837749,-500.0,9.996e-05,2]
[348872310,1736839837758,-1616.29,9.996e-05,2]
[348872311,1736839837767,-2951.17,9.996e-05,2]
[348872312,1736839837777,-1570.84,9.996e-05,2]
[348872313,1736839837786,-1221.07,9.996e-05,2]
[348872314,1736839837795,-500.0,9.996e-05,2]
[348872315,1736839837804,-3014.57,9.996e-05,2]
[348872316,1736839837813,-7953.74,9.996e-05,2]
[348872317,1736839837823,-836.64,9.996e-05,2]
[348872318,1736839837832,-500.0,9.996e-05,2]
[348872319,1736839837841,-500.0,9.996e-05,2]
[348872320,1736839837850,-1014.76,9.996e-05,2]
[348872321,1736839837859,-1749.84,9.996e-05,2]
[348872322,1736839837868,-163.98336043,9.996e-05,2]
[348872323,1736839837878,-1444.03,9.996e-05,2]
[348872324,1736839837887,-2152.6,9.996e-05,2]
[348872325,1736839837896,-500.0,9.996e-05,2]
[348872326,1736839837906,-2852.77,9.996e-05,2]
[348872327,1736839837915,-3249.33,9.996e-05,2]
[348872328,1736839837924,-500.0,9.996e-05,2]
[348872329,1736839837934,-1909.74,9.996e-05,2]
[348872330,1736839837943,-3055.92,9.996e-05,2]
[348872331,1736839837952,-1838.94,9.996e-05,2]
[348872333,1736839837961,-939.65,9.996e-05,2]
[348872334,1736839837971,-4196.9,9.996e-05,2]
[348872335,1736839837981,-500.0,9.996e-05,2]
[348872336,1736839837990,-500.0,9.996e-05,2]
[348872337,1736839838000,-500.0,9.996e-05,2]
[348872338,1736839838009,-1457.6,9.996e-05,2]
[348872339,1736839838020,-4714.51,9.996e-05,2]
[348872340,1736839838029,-500.0,9.996e-05,2]
[348872341,1736839838038,-878.976168,9.996e-05,2]
[348872342,1736839838047,-500.0,9.996e-05,2]
[348872343,1736839838058,-500.0,9.996e-05,2]
[348872344,1736839838068,-502.30060655,9.996e-05,2]
[348872345,1736839838079,-630.63,9.996e-05,2]
[348872347,1736839838089,-500.0,9.996e-05,2]
[348872349,1736839838099,-500.0,9.996e-05,2]
[348872351,1736839838108,-709.24,9.996e-05,2]
[348872352,1736839838118,-500.0,9.996e-05,2]
[348872353,1736839838127,-500.0,9.996e-05,2]
[348872354,1736839838136,-500.0,9.996e-05,2]
[348872355,1736839838146,-500.0,9.996e-05,2]
[348872356,1736839838155,-500.0,9.996e-05,2]
[348872357,1736839838164,-500.0,9.996e-05,2]
[348872358,1736839838175,-500.0,9.996e-05,2]
[348872359,1736839838421,-500.0,9.996e-05,2]
[348872360,1736839838434,-298.301388,9.997e-05,2]
[348872361,1736839838444,-298.301388,9.997e-05,2]
[348872362,1736839838454,-298.301388,9.997e-05,2]
[348872363,1736839838463,-298.301388,9.997e-05,2]
[348872364,1736839838477,-677.08,9.997e-05,2]
[348872365,1736839838486,-500.0,9.997e-05,2]
[348872366,1736839838496,-500.0,9.997e-05,2]
[348872368,1736839838506,-500.0,9.997e-05,2]
[348872371,1736839838518,-500.0,9.997e-05,2]
[348872372,1736839838527,-924.68,9.997e-05,2]
[348872374,1736839838537,-657.15,9.997e-05,2]
[348872376,1736839838547,-675.22,9.997e-05,2]
[348872378,1736839838557,-859.96,9.997e-05,2]
[348872380,1736839838567,-500.0,9.997e-05,2]
[348872382,1736839838576,-500.0,9.997e-05,2]
[348872384,1736839838586,-500.0,9.997e-05,2]
[348872386,1736839838595,-503.22024224,9.997e-05,2]
[348872388,1736839838606,-500.0,9.997e-05,2]
[348872389,1736839838616,-500.0,9.997e-05,2]
[348872390,1736839838625,-500.0,9.997e-05,2]
[348872391,1736839838635,-582.02,9.997e-05,2]
[348872393,1736839838644,-500.0,9.997e-05,2]
[348872395,1736839838653,-500.0,9.997e-05,2]
[348872397,1736839838663,-500.0,9.997e-05,2]
[348872398,1736839838675,-892.77,9.997e-05,2]
[348872399,1736839838684,-797.2,9.997e-05,2]
[348872400,1736839838694,-877.01,9.997e-05,2]
[348872401,1736839838703,-500.0,9.997e-05,2]
[348872402,1736839838712,-500.0,9.997e-05,2]
[348872403,1736839838721,-500.0,9.997e-05,2]
[348872404,1736839838730,-500.0,9.997e-05,2]
[348872406,1736839838740,-500.0,9.997e-05,2]
[348872407,1736839838750,-500.0,9.997e-05,2]
[348872408,1736839838760,-500.0,9.997e-05,2]
[348872409,1736839838770,-500.0,9.997e-05,2]
[348872410,1736839838779,-500.0,9.997e-05,2]
[348872411,1736839838789,-500.0,9.997e-05,2]
[348872412,1736839838798,-258.60833354,9.997e-05,2]
[348872413,1736839838808,-500.0,9.997e-05,2]
[348872414,1736839838817,-500.0,9.997e-05,2]
[348872415,1736839838826,-969.57,9.997e-05,2]
[348872416,1736839838835,-500.0,9.997e-05,2]
[348872417,1736839838845,-500.0,9.997e-05,2]
[348872418,1736839838854,-500.0,9.997e-05,2]
[348872419,1736839838864,-500.0,9.997e-05,2]
[348872420,1736839838873,-500.0,9.997e-05,2]
[348872421,1736839838883,-500.0,9.997e-05,2]
[348872422,1736839838892,-1078.23,9.997e-05,2]
[348872423,1736839838901,-955.82,9.997e-05,2]
[348872424,1736839838910,-500.0,9.997e-05,2]
[348872425,1736839838919,-500.0,9.997e-05,2]
[348872426,1736839838931,-691.31,9.997e-05,2]
[348872427,1736839838940,-500.0,9.997e-05,2]
[348872428,1736839838949,-633.96,9.997e-05,2]
[348872429,1736839838958,-612.02,9.997e-05,2]
[348872430,1736839838967,-500.0,9.997e-05,2]
[348872431,1736839838976,-500.0,9.997e-05,2]
[348872432,1736839838986,-500.0,9.997e-05,2]
[348872433,1736839838995,-500.0,9.997e-05,2]
[348872434,1736839839004,-1151.94,9.997e-05,2]
[348872435,1736839839013,-500.0,9.997e-05,2]
[348872436,1736839839023,-500.0,9.997e-05,2]
[348872437,1736839839032,-500.0,9.997e-05,2]
[348872438,1736839839041,-500.0,9.997e-05,2]
[348872439,1736839839050,-500.0,9.997e-05,2]
[348872440,1736839839059,-1163.28,9.997e-05,2]
[348872441,1736839839069,-500.0,9.997e-05,2]
[348872442,1736839839078,-500.0,9.997e-05,2]
[348872443,1736839839087,-500.0,9.997e-05,2]
[348872444,1736839839096,-500.0,9.997e-05,2]
[348872445,1736839839106,-1659.7,9.997e-05,2]
[348872446,1736839839115,-500.0,9.997e-05,2]
[348872447,1736839839124,-503.20254695,9.997e-05,2]
[348872448,1736839839134,-500.0,9.997e-05,2]
[348872449,1736839839143,-1321.52,9.997e-05,2]
[348872450,1736839839153,-820.82,9.997e-05,2]
[348872451,1736839839162,-696.15,9.997e-05,2]
[348872452,1736839839171,-721.09,9.997e-05,2]
[348872453,1736839839181,-500.0,9.997e-05,2]
[348872454,1736839839190,-500.0,9.997e-05,2]
[348872455,1736839839200,-1826.56,9.997e-05,2]
[348872456,1736839839210,-929.55,9.997e-05,2]
[348872457,1736839839220,-500.0,9.997e-05,2]
[348872458,1736839839229,-723.34,9.997e-05,2]
[348872459,1736839839238,-500.0,9.997e-05,2]
[348872460,1736839839247,-858.38,9.997e-05,2]
[348872461,1736839839256,-500.0,9.997e-05,2]
[348872462,1736839839266,-3321.71,9.997e-05,2]
[348872463,1736839839277,-792.4,9.997e-05,2]
[348872464,1736839839287,-500.0,9.997e-05,2]
[348872465,1736839839296,-500.0,9.997e-05,2]
[348872466,1736839839306,-501.59983115,9.997e-05,2]
[348872467,1736839839315,-500.0,9.997e-05,2]
[348872468,1736839839324,-500.0,9.997e-05,2]
[348872469,1736839839334,-7858.39,9.997e-05,2]
[348872470,1736839839343,-500.0,9.997e-05,2]
[348872471,1736839839352,-1075.76,9.997e-05,2]
[348872472,1736839839362,-963.46,9.997e-05,2]
[348872473,1736839839371,-500.0,9.997e-05,2]
[348872474,1736839839381,-1620.19,9.997e-05,2]
[348872475,1736839839390,-500.0,9.997e-05,2]
[348872476,1736839839399,-874.59,9.997e-05,2]
[348872477,1736839839408,-500.0,9.997e-05,2]
[348872478,1736839839417,-500.0,9.997e-05,2]
[348872479,1736839839427,-500.0,9.997e-05,2]
[348872480,1736839839437,-2349.96,9.997e-05,2]
[348872481,1736839839447,-500.0,9.997e-05,2]
[348872482,1736839839457,-500.0,9.997e-05,2]
[348872483,1736839839467,-500.0,9.997e-05,2]
[348872484,1736839839481,-504.40791181,9.997e-05,2]
[348872485,1736839839490,-722.55,9.997e-05,2]
[348872486,1736839839500,-500.0,9.997e-05,2]
[348872487,1736839839510,-500.0,9.997e-05,2]
[348872488,1736839839520,-500.0,9.997e-05,2]
[348872489,1736839839529,-500.0,9.997e-05,2]
[348872490,1736839839539,-676.55,9.997e-05,2]
[348872491,1736839839549,-500.0,9.997e-05,2]
[348872492,1736839839561,-500.0,9.997e-05,2]
[348872493,1736839839571,-826.674,9.998e-05,2]
[348872494,1736839839580,-826.41,9.998e-05,2]
[348872495,1736839839591,-3035.46,9.998e-05,2]
[348872496,1736839839601,-728.54,9.998e-05,2]
[348872497,1736839839610,-500.0,9.998e-05,2]
[348872498,1736839839619,-1052.27,9.998e-05,2]
[348872499,1736839839629,-298.301388,9.999e-05,2]
[348872500,1736839839638,-298.301388,9.999e-05,2]
[348872501,1736839839648,-390.09541743,9.999e-05,2]
[348872502,1736839839658,-500.0,9.999e-05,2]
[348872503,1736839839668,-573.67951457,9.999e-05,2]
[348872504,1736839839679,-500.0,9.999e-05,2]
[348872505,1736839839689,-500.0,9.999e-05,2]
[348872506,1736839839698,-500.0,9.999e-05,2]
[348872507,1736839839707,-500.0,9.999e-05,2]
[348872508,1736839839716,-500.0,9.999e-05,2]
[348872509,1736839839726,-500.0,9.999e-05,2]
[348872510,1736839839735,-500.0,9.999e-05,2]
[348872511,1736839839745,-500.0,9.999e-05,2]
[348872512,1736839839754,-255.83370233,9.999e-05,2]
[348872513,1736839839764,-500.0,9.999e-05,2]
[348872514,1736839839774,-500.0,9.999e-05,2]
[348872515,1736839839783,-500.0,9.999e-05,2]
[348872516,1736839839792,-500.0,9.999e-05,2]
[348872517,1736839839801,-500.0,9.999e-05,2]
[348872518,1736839839811,-500.0,9.999e-05,2]
[348872519,1736839839821,-273.0614986,9.999e-05,2]
[348872520,1736839839830,-500.0,9.999e-05,2]
[348872521,1736839839840,-500.0,9.999e-05,2]
[348872522,1736839839849,-500.0,9.999e-05,2]
[348872523,1736839839858,-500.0,9.999e-05,2]
[348872524,1736839839868,-502.56332244,9.999e-05,2]
[348872525,1736839839878,-504.93445649,9.999e-05,2]
[348872526,1736839839888,-500.0,9.999e-05,2]
[348872527,1736839839897,-508.93920594,9.999e-05,2]
[348872528,1736839839907,-500.0,9.999e-05,2]
[348872529,1736839839916,-500.0,9.999e-05,2]
[348872530,1736839839925,-500.0,9.999e-05,2]
[348872531,1736839839934,-500.0,9.999e-05,2]
[348872532,1736839839943,-503.2499925,9.999e-05,2]
[348872533,1736839839953,-500.0,9.999e-05,2]
[348872534,1736839839962,-500.0,9.999e-05,2]
[348872535,1736839839971,-500.0,9.999e-05,2]
[348872536,1736839839981,-500.0,9.999e-05,2]
[348872537,1736839839990,-540.62776063,9.999e-05,2]
[348872538,1736839840000,-500.0,9.999e-05,2]
[348872539,1736839840009,-500.0,9.999e-05,2]
[348872540,1736839840019,-500.0,9.999e-05,2]
[348872541,1736839840028,-500.0,9.999e-05,2]
[348872542,1736839840037,-500.0,9.999e-05,2]
[348872543,1736839840047,-500.0,9.999e-05,2]
[348872544,1736839840056,-500.0,9.999e-05,2]
[348872545,1736839840065,-500.0,9.999e-05,2]
[348872546,1736839840075,-500.0,9.999e-05,2]
[348872547,1736839840085,-500.0,9.999e-05,2]
[348872548,1736839840094,-500.0,9.999e-05,2]
[348872549,1736839840103,-500.0,9.999e-05,2]
[348872550,1736839840113,-500.7724262,9.999e-05,2]
[348872551,1736839840123,-500.0,9.999e-05,2]
[348872552,1736839840132,-500.0,9.999e-05,2]
[348872553,1736839840141,-500.0,9.999e-05,2]
[348872554,1736839840151,-503.3699436,9.999e-05,2]
[348872556,1736839840161,-500.0,9.999e-05,2]
[348872557,1736839840170,-500.0,9.999e-05,2]
[348872558,1736839840181,-500.0,9.999e-05,2]
[348872559,1736839840191,-500.0,9.999e-05,2]
[348872560,1736839840201,-171.26,9.999e-05,2]
[348872561,1736839840210,-500.0,9.999e-05,2]
[348872562,1736839840220,-500.0,9.999e-05,2]
[348872563,1736839840229,-500.0,9.999e-05,2]
[348872564,1736839840238,-500.0,9.999e-05,2]
[348872565,1736839840248,-500.0,9.999e-05,2]
[348872566,1736839840257,-237.9369295,9.999e-05,2]
[348872567,1736839840267,-500.0,9.999e-05,2]
[348872568,1736839840278,-575.16006284,9.999e-05,2]
[348872569,1736839840288,-500.0,9.999e-05,2]
[348872570,1736839840298,-500.0,9.999e-05,2]
[348872571,1736839840309,-500.0,9.999e-05,2]
[348872572,1736839840318,-500.0,9.999e-05,2]
[348872573,1736839840328,-1222.25,9.999e-05,2]
[348872574,1736839840339,-514.47962162,9.999e-05,2]
[348872575,1736839840348,-500.0,9.999e-05,2]
[348872576,1736839840358,-500.0,9.999e-05,2]
[348872577,1736839840367,-500.0,9.999e-05,2]
[348872578,1736839840376,-502.80202421,9.999e-05,2]
[348872579,1736839840386,-500.0,9.999e-05,2]
[348872580,1736839840396,-500.0,9.999e-05,2]
[348872581,1736839840405,-1540.32,9.999e-05,2]
[348872582,1736839840415,-500.0,9.999e-05,2]
[348872583,1736839840425,-500.0,9.999e-05,2]
[348872584,1736839840434,-581.8,9.999e-05,2]
[348872585,1736839840444,-500.0,9.999e-05,2]
[348872586,1736839840454,-502.41391519,9.999e-05,2]
[348872587,1736839840463,-504.26457366,9.999e-05,2]
[348872588,1736839840473,-500.0,9.999e-05,2]
[348872589,1736839840484,-500.0,9.999e-05,2]
[348872590,1736839840494,-500.0,9.999e-05,2]
[348872591,1736839840504,-354.50866912,9.999e-05,2]
[348872592,1736839840515,-500.0,9.999e-05,2]
[348872593,1736839840524,-1000.0,9.999e-05,2]
[348872594,1736839840533,-880.81,9.999e-05,2]
[348872595,1736839840543,-500.0,9.999e-05,2]
[348872596,1736839840552,-500.0,9.999e-05,2]
[348872597,1736839840562,-500.0,9.999e-05,2]
[348872598,1736839840571,-500.0,9.999e-05,2]
[348872599,1736839840581,-505.6112857,9.999e-05,2]
[348872600,1736839840591,-500.0,9.999e-05,2]
[348872601,1736839840600,-500.0,9.999e-05,2]
[348872602,1736839840609,-500.0,9.999e-05,2]
[348872603,1736839840619,-500.0,9.999e-05,2]
[348872604,1736839840628,-500.0,9.999e-05,2]
[348872605,1736839840638,-502.64449874,9.999e-05,2]
[348872606,1736839840648,-500.0,9.999e-05,2]
[348872607,1736839840658,-502.66602578,9.999e-05,2]
[348872608,1736839840667,-505.14417339,9.999e-05,2]
[348872609,1736839840677,-500.0,9.999e-05,2]
[348872610,1736839840687,-547.6196063,9.999e-05,2]
[348872611,1736839840696,-500.0,9.999e-05,2]
[348872612,1736839840706,-500.0,9.999e-05,2]
[348872613,1736839840715,-503.99990616,9.999e-05,2]
[348872614,1736839840724,-500.0,9.999e-05,2]
[348872615,1736839840734,-507.73282238,9.999e-05,2]
[348872616,1736839840743,-2046.81,9.999e-05,2]
[348872617,1736839840753,-500.0,9.999e-05,2]
[348872618,1736839840762,-500.0,9.999e-05,2]
[348872619,1736839840771,-500.0,9.999e-05,2]
[348872620,1736839840781,-613.76,9.999e-05,2]
[348872621,1736839840792,-510.65864505,9.999e-05,2]
[348872622,1736839840801,-500.0,9.999e-05,2]
[348872623,1736839840810,-500.0,9.999e-05,2]
[348872624,1736839840819,-506.38748151,9.999e-05,2]
[348872625,1736839840829,-500.0,9.999e-05,2]
[348872626,1736839840838,-513.18061996,9.999e-05,2]
[348872627,1736839840847,-500.0,9.999e-05,2]
[348872628,1736839840856,-500.0,9.999e-05,2]
[348872629,1736839840865,-491.87507469,9.999e-05,2]
[348872630,1736839840875,-506.19072055,9.999e-05,2]
[348872631,1736839840886,-500.0,9.999e-05,2]
[348872632,1736839840895,-500.0,9.999e-05,2]
[348872633,1736839840904,-500.0,9.999e-05,2]
[348872634,1736839840913,-500.0,9.999e-05,2]
[348872635,1736839840922,-1874.71,9.999e-05,2]
[348872636,1736839840932,-500.0,9.999e-05,2]
[348872637,1736839840941,-500.0,9.999e-05,2]
[348872638,1736839840951,-500.0,9.999e-05,2]
[348872639,1736839840961,-531.07880809,9.999e-05,2]
[348872640,1736839840970,-506.06226391,9.999e-05,2]
[348872641,1736839840979,-500.0,9.999e-05,2]
[348872642,1736839840988,-500.0,9.999e-05,2]
[348872643,1736839840997,-500.0,9.999e-05,2]
[348872644,1736839841006,-500.0,9.999e-05,2]
[348872645,1736839841015,-505.43545016,9.999e-05,2]
[348872646,1736839841024,-500.0,9.999e-05,2]
[348872647,1736839841033,-500.0,9.999e-05,2]
[348872648,1736839841043,-500.0,9.999e-05,2]
[348872649,1736839841052,-500.0,9.999e-05,2]
[348872650,1736839841061,-500.0,9.999e-05,2]
[348872651,1736839841071,-500.0,9.999e-05,2]
[348872652,1736839841080,-503.42597057,9.999e-05,2]
[348872653,1736839841089,-500.0,9.999e-05,2]
[348872654,1736839841098,-322.30654379,9.999e-05,2]
[348872655,1736839841107,-500.0,9.999e-05,2]
[348872656,1736839841117,-503.05941943,9.999e-05,2]
[348872657,1736839841127,-500.0,9.999e-05,2]
[348872658,1736839841136,-500.0,9.999e-05,2]
[348872659,1736839841145,-505.89982287,9.999e-05,2]
[348872660,1736839841154,-231.73335319,9.999e-05,2]
[348872661,1736839841163,-500.0,9.999e-05,2]
[348872662,1736839841172,-260.33345612,9.999e-05,2]
[348872663,1736839841182,-500.0,9.999e-05,2]
[348872664,1736839841191,-500.0,9.999e-05,2]
[348872665,1736839841200,-509.00609673,9.999e-05,2]
[348872666,1736839841211,-500.0,9.999e-05,2]
[348872667,1736839841220,-500.0,9.999e-05,2]
[348872668,1736839841231,-500.0,9.999e-05,2]
[348872669,1736839841243,-500.0,9.999e-05,2]
[348872670,1736839841254,-500.0,9.999e-05,2]
[348872671,1736839841264,-500.0,9.999e-05,2]
[348872672,1736839841277,-500.0,9.999e-05,2]
[348872673,1736839841287,-500.0,9.999e-05,2]
[348872674,1736839841297,-500.0,9.999e-05,2]
[348872675,1736839841306,-506.44884165,9.999e-05,2]
[348872676,1736839841315,-158.01630328,9.999e-05,2]
[348872677,1736839841324,-500.0,9.999e-05,2]
[348872678,1736839841333,-500.0,9.999e-05,2]
[348872679,1736839841343,-500.0,9.999e-05,2]
[348872680,1736839841352,-500.0,9.999e-05,2]
[348872681,1736839841361,-501.76927644,9.999e-05,2]
[348872682,1736839841371,-500.0,9.999e-05,2]
[348872683,1736839841380,-500.0,9.999e-05,2]
[348872684,1736839841389,-500.0,9.999e-05,2]
[348872685,1736839841399,-905.85,9.999e-05,2]
[348872686,1736839841408,-500.0,9.999e-05,2]
[348872687,1736839841418,-500.0,9.999e-05,2]
[348872688,1736839841427,-340.53433851,9.999e-05,2]
[348872689,1736839841437,-500.0,9.999e-05,2]
[348872690,1736839841446,-500.0,9.999e-05,2]
[348872691,1736839841455,-500.0,9.999e-05,2]
[348872692,1736839841465,-500.0,9.999e-05,2]
[348872693,1736839841478,-500.0,9.999e-05,2]
[348872694,1736839841488,-500.0,9.999e-05,2]
[348872695,1736839841498,-500.0,9.999e-05,2]
[348872696,1736839841508,-865.87,9.999e-05,2]
[348872697,1736839841519,-500.0,9.999e-05,2]
[348872698,1736839841528,-500.0,9.999e-05,2]
[348872699,1736839841539,-500.0,9.999e-05,2]
[348872700,1736839841552,-500.0,9.999e-05,2]
[348872701,1736839841563,-500.0,9.999e-05,2]
[348872702,1736839841573,-508.77183185,9.999e-05,2]
[348872703,1736839841582,-500.0,9.999e-05,2]
[348872704,1736839841591,-500.0,9.999e-05,2]
[348872705,1736839841601,-500.0,9.999e-05,2]
[348872706,1736839841609,-500.0,9.999e-05,2]
[348872707,1736839841619,-500.0,9.999e-05,2]
[348872708,1736839841628,-500.0,9.999e-05,2]
[348872709,1736839841637,-500.0,9.999e-05,2]
[348872710,1736839841647,-500.0,9.999e-05,2]
[348872711,1736839841656,-500.0,9.999e-05,2]
[348872712,1736839841665,-500.0,9.999e-05,2]
[348872713,1736839841674,-502.25681925,9.999e-05,2]
[348872714,1736839841683,-500.0,9.999e-05,2]
[348872715,1736839841692,-500.0,9.999e-05,2]
[348872716,1736839841701,-500.0,9.999e-05,2]
[348872717,1736839841710,-500.0,9.999e-05,2]
[348872718,1736839841719,-500.0,9.999e-05,2]
[348872719,1736839841727,-81049.97821092,0.0001,2]
[348872720,1736839842585,-2274.58,9.995e-05,2]
[348872721,1736839842595,-500.0,9.995e-05,2]
[348872722,1736839842604,-1193.99,9.999e-05,2]
[348872723,1736839842613,-57684.29444742,0.0001,2]
[348872724,1736839842914,-467.34080002,9.995e-05,2]
[348872725,1736839842933,-32.65919998,9.995e-05,2]
[348872726,1736839842942,-1202.38,9.995e-05,2]
[348872727,1736839842952,-500.0,9.996e-05,2]
[348872728,1736839842961,-135.61094452,9.997e-05,2]
[348872729,1736839843052,-364.38905548,9.997e-05,2]
[348872730,1736839843062,-500.0,9.999e-05,2]
[348872731,1736839843071,-2634.82138336,0.0001,2]
[348872732,1736839843095,-502.98585424,9.999e-05,2]
[348872733,1736839843104,-487.01414576,0.0001,2]
[348872734,1736839843723,-317.92,9.896e-05,2]
[348872735,1736839843736,-900.10574579,9.896e-05,2]
[348872736,1736839843748,-975.93,9.896e-05,2]
[348872739,1736839843790,-306.04425421,9.896e-05,2]
[348872740,1736839843799,-500.0,9.995e-05,2]
[348872741,1736839843809,-500.0,9.996e-05,2]
[348872742,1736839843818,-5.59306319,9.997e-05,2]
[348872745,1736839846376,-357.78713553,9.996e-05,2]
[348872746,1736839846388,-661.99981347,9.996e-05,2]